bitfinex/quotes_ETHUSD_20240823
["timestamp","ask_amount","ask_price","bid_price","bid_amount"]
[1724422014398,3.73623,2676.5,2675.7,3.73733]
[1724422014836,4.10954,2676.7,2675.8,3.73715]
[1724422015051,4.10954,2676.7,2675.9,3.73694]
[1724422015348,0.37358,2676.7,2676.3,3.73649]
[1724422015553,3.73552,2677.0,2676.3,3.73649]
[1724422015760,3.73552,2677.0,2676.0,3.7369]
[1724422015922,3.73538,2677.1,2676.1,3.73675]
[1724422016274,7.42238,2677.7,2676.7,3.73586]
[1724422016551,7.42238,2677.7,2676.2,3.62472655]
[1724422016552,3.73514,2677.3,2676.8,0.55]
[1724422016760,3.6878,2677.7,2676.5,3.73611]
[1724422017051,0.4420777,2677.6,2676.6,4.28606]
[1724422017232,3.73536,2677.2,2676.4,3.73631]
[1724422017435,3.73486,2677.5,2676.5,4.28611]
[1724422017597,3.73486,2677.5,2676.2,0.55]
[1724422017801,0.4420777,2677.6,2676.1,3.55]
[1724422018053,0.41298777,2677.5,2677.0,3.73546]
[1724422018259,0.41298777,2677.5,2676.1,0.55]
[1724422018548,0.41298777,2677.5,2677.0,3.73542]
[1724422018759,3.6878,2677.7,2677.1,0.55]
[1724422019059,3.6878,2677.7,2676.3,3.0]
[1724422019207,3.728,2678.1,2677.4,3.73491]
[1724422019410,3.728,2678.1,2676.9,3.73562]
[1724422019638,4.10695,2678.0,2677.1,3.73524]
[1724422019799,3.7344,2677.9,2677.1,3.73524]
[1724422020155,3.7344,2677.9,2676.9,3.73555]
[1724422020156,0.3728,2678.0,2676.9,3.73555]
[1724422020304,3.728,2678.1,2677.3,3.7351]
[1724422020657,3.73399,2678.1,2677.4,0.55]
[1724422020958,3.73414,2678.0,2677.2,0.55]
[1724422021251,3.73375,2678.3,2677.4,3.73496]
[1724422021399,7.43739,2678.5,2676.7,3.73586]
[1724422021400,3.7341,2678.1,2677.3,3.73499]
[1724422021600,3.9539,2677.8,2676.7,3.73593]
[1724422021859,0.37341,2678.0,2676.6,3.0]
[1724422022058,0.37341,2678.0,2676.2,3.7365]
[1724422022059,3.9539,2678.3,2677.3,3.735]
[1724422022355,3.0,2678.9,2677.7,3.73453]
[1724422022674,3.0,2678.9,2677.5,3.73481]
[1724422022675,3.73358,2678.4,2677.5,3.73479]
[1724422022951,3.73371,2678.3,2677.5,3.73476]
[1724422023255,3.73376,2678.3,2677.3,3.735]
[1724422023404,0.36812,2679.0,2676.9,3.0]
[1724422023405,7.38751,2678.1,2676.9,3.0]
[1724422023608,3.6535,2678.1,2677.3,3.73498]
[1724422023919,0.373376,2678.2,2677.2,3.73516]
[1724422024242,3.6535,2678.5,2677.0,7.4801]
[1724422024545,3.73434,2677.9,2677.0,3.7355]
[1724422024744,3.73404,2678.1,2677.1,4.28533]
[1724422024930,3.73447,2677.8,2677.1,0.55]
[1724422025142,3.6506,2678.6,2676.4,3.7884]
[1724422025353,3.6506,2677.6,2676.5,3.73621]
[1724422025638,3.6506,2678.2,2677.7,3.73444]
[1724422025809,3.6506,2678.7,2677.8,3.73434]
[1724422026002,3.7333,2678.6,2677.9,3.73423]
[1724422026207,3.73346,2678.5,2677.6,3.73463]
[1724422026403,3.73381,2678.3,2677.4,3.73482]
[1724422026622,4.480286,2678.4,2677.4,3.73482]
[1724422026828,4.480296,2678.4,2677.5,0.55]
[1724422027041,4.480266,2678.4,2677.3,3.73508]
[1724422027271,3.73395,2678.2,2677.4,4.28494]
[1724422027473,7.38381,2678.7,2677.4,4.28494]
[1724422027474,3.6506,2678.7,2677.9,3.73425]
[1724422027630,3.6506,2678.7,2677.8,3.73438]
[1724422027829,3.6506,2678.7,2677.4,0.55]
[1724422028031,3.6506,2678.7,2678.0,3.734]
[1724422028259,0.738368,2678.6,2677.7,3.73452]
[1724422028457,3.6506,2678.7,2678.0,3.73411]
[1724422028772,3.6506,2678.7,2677.4,8.04]
[1724422028980,3.73372,2678.3,2677.4,8.04]
[1724422029287,3.73372,2678.3,2677.4,7.49]
[1724422029458,7.38376,2678.7,2677.4,7.49]
[1724422029663,0.738376,2678.6,2677.6,3.73467]
[1724422029834,3.73415,2678.0,2677.2,3.73512]
[1724422030176,3.73459,2677.7,2677.0,16.21548]
[1724422030491,3.73453,2677.8,2677.0,3.73548]
[1724422030696,3.7636,2677.9,2677.1,3.73537]
[1724422030982,3.7636,2677.9,2677.0,3.73548]
[1724422030983,3.73443,2677.8,2677.0,3.73548]
[1724422031142,0.749803,2677.7,2677.0,3.7354]
[1724422032233,0.749803,2677.7,2676.4,7.9527579]
[1724422032234,3.7636,2677.9,2677.2,3.73512]
[1724422032456,3.7636,2677.9,2677.0,3.73543]
[1724422032658,3.7636,2677.9,2676.8,3.73571]
[1724422032659,3.73471,2677.6,2676.8,3.73571]
[1724422032895,3.73471,2677.6,2676.6,3.73602]
[1724422033063,3.7345,2677.8,2677.0,3.73548]
[1724422033288,3.7636,2677.9,2677.0,3.73541]
[1724422033431,3.73391,2678.2,2677.5,3.7347]
[1724422033432,3.73385,2678.2,2677.5,3.7347]
[1724422033626,0.36812,2679.0,2677.0,3.73547]
[1724422033627,3.6022,2678.6,2677.4,3.73485]
[1724422033833,3.73302,2678.8,2678.0,3.73408]
[1724422034034,4.1009,2679.0,2678.1,0.07467494]
[1724422034266,3.6022,2679.6,2678.6,3.73325]
[1724422034574,3.6022,2679.6,2678.7,0.55]
[1724422034772,3.6022,2679.6,2678.8,3.73301]
[1724422034980,3.6022,2679.6,2678.6,0.55]
[1724422035328,3.6022,2679.6,2677.6,3.6051]
[1724422035546,0.733405,2679.5,2677.9,3.73413]
[1724422035733,3.73291,2678.9,2678.0,4.2841]
[1724422035934,0.733405,2679.5,2678.0,4.2841]
[1724422035935,7.59985,2679.2,2678.2,3.73383]
[1724422036175,3.73317,2678.7,2677.8,11.16654]
[1724422036485,3.73275,2679.0,2677.9,3.73424]
[1724422036689,4.106175,2678.9,2677.7,3.73453]
[1724422036867,3.73319,2678.7,2677.7,3.7345]
[1724422037037,3.7052,2678.8,2677.3,3.0]
[1724422037392,3.73358,2678.4,2677.5,3.7348]
[1724422037935,3.5947,2678.0,2677.3,3.73497]
[1724422038144,7.68833,2678.0,2677.1,3.73535]
[1724422038394,7.6883,2678.0,2676.7,3.73591]
[1724422038538,7.6883,2678.0,2676.1,19.37669237]
[1724422038539,3.73475,2677.6,2676.1,3.9432]
[1724422038738,3.73475,2677.6,2676.7,3.7358]
[1724422038933,3.73475,2677.6,2676.5,3.73615]
[1724422039217,4.108305,2677.5,2676.3,3.73646]
[1724422039400,7.53386,2677.4,2676.1,3.9432]
[1724422039689,0.373475,2677.5,2676.6,3.73597]
[1724422039887,3.848,2677.8,2676.9,3.73555]
[1724422040093,3.848,2677.8,2677.2,3.73516]
[1724422040389,0.35947,2678.0,2677.0,3.81021581]
[1724422040390,0.35947,2678.0,2677.3,3.73498]
[1724422040596,3.848,2678.2,2677.8,3.7343]
[1724422040893,4.221275,2678.9,2678.3,3.7337]
[1724422041037,8.15005237,2680.5,2677.9,0.55]
[1724422041038,3.7666,2679.3,2677.9,0.55]
[1724422041235,3.7666,2679.3,2678.4,3.73353]
[1724422041440,3.7666,2679.3,2678.5,0.62466544]
[1724422041643,3.858746,2680.6,2678.7,3.73312]
[1724422041644,3.9157,2679.7,2678.7,3.73312]
[1724422041944,3.9157,2679.7,2678.5,0.55]
[1724422041945,3.9157,2679.7,2678.8,4.28288]
[1724422042177,0.39157,2679.6,2678.8,0.55]
[1724422043447,3.9157,2679.7,2678.9,4.28285]
[1724422043645,3.9157,2679.7,2678.9,0.55]
[1724422043953,3.9157,2679.7,2678.9,3.73275]
[1724422044156,3.8872,2680.1,2679.0,4.28273]
[1724422044335,0.761831,2680.0,2679.1,0.55]
[1724422044542,3.73152,2679.9,2679.1,0.55]
[1724422044881,3.7324,2679.3,2678.3,3.73359]
[1724422045085,3.7324,2679.3,2678.4,3.73357]
[1724422045395,0.37324,2679.2,2678.4,3.73354]
[1724422045540,0.37324,2679.2,2678.2,3.73382]
[1724422045741,3.0,2679.7,2678.0,3.73408]
[1724422045935,3.0,2679.7,2677.7,3.73454]
[1724422045936,3.73316,2678.7,2677.7,3.73454]
[1724422046196,7.32324,2679.0,2677.3,3.8576]
[1724422046353,7.32324,2679.0,2677.4,3.73494]
[1724422046680,3.7334,2678.6,2677.7,3.73448]
[1724422046893,3.7334,2678.6,2677.3,7.59258]
[1724422046894,3.73329,2678.6,2677.3,7.59258]
[1724422047092,0.373329,2678.5,2677.8,3.7344]
[1724422047251,0.373329,2678.5,2677.5,3.7348]
[1724422047451,0.373329,2678.5,2677.3,7.59269]
[1724422047452,0.373329,2678.5,2677.7,3.7345]
[1724422047652,0.373329,2678.5,2677.9,3.73423]
[1724422047897,3.73301,2678.8,2678.0,3.73412]
[1724422048099,3.73301,2678.8,2677.8,3.7344]
[1724422048100,3.5905,2679.0,2678.1,3.73398]
[1724422048269,3.5905,2679.0,2676.4,11.88639237]
[1724422048470,3.73358,2678.4,2677.5,3.73474]
[1724422048670,3.73373,2678.3,2677.3,3.73508]
[1724422048869,6.73233,2679.3,2677.0,3.73538]
[1724422048870,3.73402,2678.1,2677.0,3.73538]
[1724422049200,4.543631,2678.2,2677.6,3.73468]
[1724422049367,3.7332,2678.6,2677.2,3.9108]
[1724422049566,3.7332,2678.6,2676.7,3.9108]
[1724422049567,3.73368,2678.4,2676.7,3.9108]
[1724422049892,3.73386,2678.2,2677.3,3.73507]
[1724422050094,3.73386,2678.2,2677.4,3.73494]
[1724422050404,3.7332,2678.6,2677.5,0.55]
[1724422050582,3.73372,2678.3,2677.5,0.55]
[1724422050780,3.73372,2678.3,2677.2,3.7352]
[1724422050781,4.10675,2678.5,2677.3,4.28507]
[1724422050954,4.10675,2678.5,2677.6,3.73466]
[1724422051161,4.10675,2678.5,2677.7,0.55]
[1724422051387,4.10675,2678.5,2677.7,4.28452]
[1724422051557,0.783995,2678.4,2677.7,0.55]
[1724422051895,0.783995,2678.4,2677.5,4.28478]
[1724422052080,3.73373,2678.3,2677.5,0.55]
[1724422052399,0.783995,2678.4,2677.8,3.73438]
[1724422052556,0.783995,2678.4,2677.9,0.55]
[1724422053097,0.37332,2678.5,2677.8,0.55]
[1724422053268,0.37332,2678.5,2678.0,3.7341]
[1724422053467,0.37332,2678.5,2677.8,0.55]
[1724422053666,0.37332,2678.5,2677.2,3.73523]
[1724422053667,3.73399,2678.1,2677.2,3.73523]
[1724422053868,0.37332,2678.5,2676.5,4.12667913]
[1724422053869,3.73374,2678.3,2677.4,3.73496]
[1724422054099,4.107244,2678.2,2677.4,3.73496]
[1724422054254,3.7332,2678.6,2676.9,8.15005237]
[1724422054602,3.73256,2679.2,2678.3,3.73358]
[1724422054771,3.73221,2679.4,2678.4,0.07466084]
[1724422055099,3.73217,2679.4,2678.5,3.73337]
[1724422055306,3.7326,2679.1,2678.6,0.55]
[1724422055615,3.73242,2679.3,2678.4,4.28357]
[1724422055759,1.105159,2679.3,2678.4,0.55]
[1724422055964,3.587,2679.5,2678.4,0.55]
[1724422056512,3.73302,2678.8,2678.3,0.55]
[1724422056716,3.587,2679.5,2678.1,0.55]
[1724422056717,3.73316,2678.7,2678.1,0.55]
[1724422056862,3.73316,2678.7,2677.6,3.7276]
[1724422056863,3.73289,2678.9,2677.9,0.55]
[1724422057062,3.73258,2679.2,2678.3,3.7336]
[1724422057261,3.8076,2679.3,2677.9,0.55]
[1724422057590,3.8076,2679.3,2678.3,3.73369]
[1724422057800,3.8076,2679.3,2678.4,4.28353]
[1724422057801,7.53992,2679.3,2678.4,4.28353]
[1724422057961,3.8076,2679.3,2678.5,0.07466644]
[1724422058156,3.8076,2679.3,2678.0,3.8936]
[1724422058157,4.561576,2679.3,2678.3,3.73359]
[1724422058356,8.293896,2679.3,2678.4,0.55]
[1724422058702,3.73246,2679.2,2678.4,4.28356]
[1724422058907,3.73246,2679.2,2678.3,3.7337]
[1724422059062,3.73275,2679.0,2678.0,10.62771]
[1724422059259,0.373275,2678.9,2677.5,3.587]
[1724422059472,4.561576,2679.3,2677.5,3.587]
[1724422059473,4.561576,2679.3,2678.4,3.73347]
[1724422059692,4.561576,2679.3,2678.3,3.73366]
[1724422059858,4.561576,2679.3,2678.5,3.73338]
[1724422060271,4.561576,2679.3,2678.6,3.73327]
[1724422060613,3.73302,2678.8,2678.0,3.73401]
[1724422060790,0.373302,2678.7,2677.8,3.73437]
[1724422061375,0.373302,2678.7,2677.7,3.73453]
[1724422061678,3.73385,2678.2,2677.1,3.73529]
[1724422061894,3.73385,2678.2,2676.5,3.73614]
[1724422061895,3.73441,2677.8,2677.0,3.73549]
[1724422062093,14.88260237,2679.2,2676.5,3.8809]
[1724422062094,3.6849,2677.7,2676.5,3.8809]
[1724422062409,3.6849,2677.7,2677.1,3.73536]
[1724422062713,3.6849,2677.7,2677.2,3.7352]
[1724422062890,3.6849,2677.7,2677.1,3.73535]
[1724422063076,4.05339,2677.7,2676.9,3.73563]
[1724422063277,4.05339,2677.7,2676.9,3.73565]
[1724422063479,4.05339,2677.7,2677.2,3.73519]
[1724422063805,3.6908,2678.1,2677.0,3.9183]
[1724422064009,7.42426,2678.5,2677.4,3.73496]
[1724422064377,3.6908,2678.5,2677.6,3.73459]
[1724422064576,3.6908,2678.5,2677.7,3.73453]
[1724422064777,3.6908,2678.5,2677.8,3.73439]
[1724422064979,0.36908,2678.4,2677.6,3.73465]
[1724422065205,0.36908,2678.4,2677.4,3.73492]
[1724422065371,0.36908,2678.4,2677.7,3.73454]
[1724422065564,0.36908,2678.4,2677.5,4.28481]
[1724422065565,3.6908,2678.5,2677.8,3.73428]
[1724422065765,3.896,2678.9,2677.9,0.07467516]
[1724422066018,4.649976,2679.3,2678.6,3.73326]
[1724422066215,8.382426,2679.3,2677.9,6.8941]
[1724422066507,4.649976,2679.3,2678.0,0.55]
[1724422066720,3.7333,2678.6,2678.0,3.0]
[1724422066864,3.73306,2678.8,2677.9,6.73424]
[1724422067069,3.73284,2679.0,2678.0,3.73402]
[1724422067264,3.7328,2679.0,2678.1,4.28397]
[1724422067496,0.8382236,2679.2,2677.9,3.73426]
[1724422067497,3.73302,2678.8,2677.9,3.73426]
[1724422067679,4.106502,2678.7,2677.9,3.73426]
[1724422067982,0.373302,2678.7,2678.0,3.73409]
[1724422068306,0.373302,2678.7,2678.0,3.73412]
[1724422068611,4.5707436,2679.2,2678.3,3.7337]
[1724422069015,3.896,2679.3,2678.8,3.73289]
[1724422069394,3.896,2679.3,2678.9,3.73286]
[1724422069724,3.896,2679.3,2678.8,3.73293]
[1724422070108,3.896,2679.3,2678.9,3.73286]
[1724422070310,3.896,2679.3,2678.7,3.73313]
[1724422070620,3.896,2679.3,2678.2,3.8826]
[1724422070621,8.01792,2679.3,2678.3,3.73369]
[1724422070824,8.01792,2679.3,2678.4,0.55]
[1724422071018,8.01792,2679.3,2678.3,3.55]
[1724422071225,3.9009,2679.7,2678.3,3.55]
[1724422071519,0.128206,2680.6,2679.2,3.73235]
[1724422071520,7.6321,2680.1,2679.2,3.73235]
[1724422071742,3.9009,2680.1,2679.3,0.55]
[1724422071877,3.858846,2680.6,2679.3,0.55]
[1724422071878,3.8979,2680.5,2679.3,0.55]
[1724422072076,3.731,2680.3,2679.5,3.73192]
[1724422072319,0.128206,2680.6,2679.2,0.55]
[1724422072525,0.128206,2680.6,2680.5,3.73064]
[1724422072882,0.128206,2680.6,2680.5,8.01128]
[1724422073425,0.128206,2680.6,2680.5,4.28064]
[1724422073624,0.128206,2680.6,2680.5,0.55]
[1724422073918,0.128206,2680.6,2679.9,3.7852]
[1724422074121,0.128206,2680.6,2680.0,0.55]
[1724422074281,0.128206,2680.6,2680.2,3.73092]
[1724422074486,0.128206,2680.6,2680.3,3.73084]
[1724422074684,0.128206,2680.6,2680.0,3.73132]
[1724422075398,0.128206,2680.6,2680.1,3.73118]
[1724422076121,0.128206,2680.6,2679.9,3.73146]
[1724422076327,0.128206,2680.6,2679.7,6.73174]
[1724422076477,0.5305066,2680.6,2679.9,3.73147]
[1724422076678,0.5305066,2680.6,2679.8,4.28155]
[1724422076912,0.5305066,2680.6,2679.7,3.73176]
[1724422077259,3.73115,2680.2,2679.2,3.73243]
[1724422077551,3.73099,2680.3,2679.0,3.73271]
[1724422077552,3.5942,2680.0,2679.0,3.73271]
[1724422077754,7.32557,2680.0,2679.1,3.73252]
[1724422077958,3.5942,2680.0,2679.1,3.73246]
[1724422078250,3.5942,2680.0,2679.1,3.73257]
[1724422078459,3.73177,2679.7,2678.7,3.73311]
[1724422078605,0.8071624,2679.9,2678.6,3.73328]
[1724422078806,3.73217,2679.4,2678.4,3.73353]
[1724422079119,3.0,2680.5,2678.3,3.7337]
[1724422079120,3.7728,2679.3,2678.3,3.7337]
[1724422079337,3.7728,2679.3,2678.4,3.73354]
[1724422079338,3.73246,2679.2,2678.4,3.73354]
[1724422079540,3.7728,2679.3,2677.9,7.65516]
[1724422079704,3.7728,2679.3,2678.3,3.73367]
[1724422079910,3.73274,2679.0,2678.2,3.73382]
[1724422080112,0.37728,2679.2,2678.3,3.73367]
[1724422080349,4.10977,2679.2,2678.3,3.73367]
[1724422080654,0.37728,2679.2,2677.9,3.73425]
[1724422080854,3.73263,2679.1,2677.8,3.73438]
[1724422081058,0.37728,2679.2,2677.9,0.373438]
[1724422081352,3.7728,2679.3,2678.1,3.73385]
[1724422081537,7.50516,2679.3,2677.5,3.8459]
[1724422081748,3.73246,2679.2,2678.2,3.73381]
[1724422082084,0.750526,2679.1,2677.9,6.73415]
[1724422082255,3.7728,2679.3,2678.8,3.7329]
[1724422082410,3.7728,2679.3,2678.3,3.73369]
[1724422082610,3.9409,2680.0,2678.8,3.7329]
[1724422082851,3.73153,2679.9,2678.9,4.28286]
[1724422083155,3.9409,2680.0,2679.1,3.73259]
[1724422083360,3.9409,2680.0,2679.2,4.35708612]
[1724422083517,3.9409,2680.0,2679.2,0.62463612]
[1724422083720,3.9409,2680.0,2679.0,3.73262]
[1724422083927,3.73149,2679.9,2679.1,3.73255]
[1724422084129,3.9409,2680.0,2679.3,3.7323]
[1724422084355,3.7316,2679.9,2679.0,3.73267]
[1724422084866,3.73179,2679.7,2678.9,3.73285]
[1724422085353,3.5949,2679.4,2678.8,3.7329]
[1724422085560,3.5949,2679.4,2678.6,3.73328]
[1724422085727,3.5949,2679.4,2678.5,3.73343]
[1724422085933,4.32758,2679.4,2678.4,3.73344]
[1724422086253,7.32707,2679.4,2678.4,3.73356]
[1724422086453,7.32707,2679.4,2678.1,7.49]
[1724422086454,7.32707,2679.4,2678.2,3.73384]
[1724422086656,3.73261,2679.1,2678.0,3.73407]
[1724422086819,3.73236,2679.3,2678.3,3.73369]
[1724422087014,3.73236,2679.3,2677.3,3.6372]
[1724422087015,3.73274,2679.0,2678.1,3.73398]
[1724422087232,0.373274,2678.9,2677.9,3.73423]
[1724422087417,3.73276,2679.0,2677.9,3.73423]
[1724422087730,3.73276,2679.0,2678.0,3.73412]
[1724422087731,3.73301,2678.8,2678.0,3.73412]
[1724422088062,3.7132,2679.1,2678.0,3.73401]
[1724422088267,3.73315,2678.7,2678.0,3.73401]
[1724422088568,3.73332,2678.6,2677.7,6.73449]
[1724422088870,0.5305066,2680.6,2677.4,3.73484]
[1724422088871,3.73369,2678.4,2677.4,3.73484]
[1724422089078,3.8534,2678.3,2677.5,3.7348]
[1724422089222,3.73386,2678.2,2677.3,3.7351]
[1724422089444,4.492716,2678.1,2677.3,3.7351]
[1724422089682,4.492716,2678.1,2677.4,3.73494]
[1724422089884,0.758726,2678.1,2677.4,3.73494]
[1724422090084,0.758726,2678.1,2677.3,3.73507]
[1724422090283,3.8534,2678.3,2677.5,3.73481]
[1724422090474,7.58716,2678.3,2677.4,3.73489]
[1724422090679,7.58716,2678.3,2677.5,3.73479]
[1724422091049,3.8534,2678.3,2677.7,3.73453]
[1724422091389,3.8534,2678.3,2677.9,3.73424]
[1724422091689,3.73252,2679.2,2678.2,3.73382]
[1724422091690,3.7004,2678.7,2678.2,3.73382]
[1724422092191,0.3,2679.9,2677.9,0.746864]
[1724422092192,3.7004,2679.3,2677.9,0.746864]
[1724422092393,3.7004,2679.3,2678.4,3.73353]
[1724422092608,3.7941,2679.9,2679.6,3.73185]
[1724422092807,3.7941,2679.9,2679.4,3.73215]
[1724422092808,3.7941,2680.4,2679.4,3.73217]
[1724422092956,7.95736066,2680.4,2679.6,3.73187]
[1724422093159,4.22656066,2680.4,2679.7,3.73176]
[1724422093486,3.7941,2680.4,2679.9,3.73145]
[1724422094253,3.7941,2680.4,2679.8,3.73155]
[1724422094487,7.5249,2680.4,2679.1,3.0]
[1724422094655,7.5249,2680.4,2679.4,3.73215]
[1724422094656,3.73106,2680.2,2679.4,3.73215]
[1724422094854,7.52489,2680.4,2679.5,3.73201]
[1724422095100,0.752489,2680.3,2679.5,3.73201]
[1724422095405,3.73107,2680.2,2679.1,3.73248]
[1724422095567,0.752489,2680.3,2679.5,3.73191]
[1724422095901,3.7941,2680.4,2679.5,3.73191]
[1724422095902,3.7941,2680.4,2679.7,3.73165]
[1724422096114,3.7941,2680.4,2679.8,3.73159]
[1724422096405,3.73123,2680.1,2679.2,6.73238]
[1724422096607,3.7941,2680.4,2679.2,3.0]
[1724422096608,3.73138,2680.0,2679.2,3.0]
[1724422096763,3.7941,2680.4,2679.3,3.73218]
[1724422096764,3.73121,2680.1,2679.3,3.73218]
[1724422096962,0.373121,2680.0,2679.3,3.73218]
[1724422097370,0.373121,2680.0,2679.1,3.73255]
[1724422097696,0.373121,2680.0,2678.8,3.73299]
[1724422097903,3.73107,2680.2,2679.4,3.73206]
[1724422098144,3.7057,2680.1,2679.0,3.73261]
[1724422098262,3.7057,2680.1,2679.3,3.73231]
[1724422098263,7.43695,2680.1,2679.3,3.73231]
[1724422098458,3.7057,2680.1,2679.4,3.73209]
[1724422098664,0.128206,2680.6,2680.0,3.73121]
[1724422098975,0.128206,2680.6,2680.1,3.7312]
[1724422099176,0.5115966,2680.6,2680.0,3.73132]
[1724422099395,0.5115966,2680.6,2679.6,3.73185]
[1724422099615,0.5115966,2680.6,2679.8,3.7316]
[1724422099793,0.5115966,2680.6,2679.6,3.73188]
[1724422100100,0.128206,2680.6,2679.4,3.0]
[1724422100276,0.128206,2680.6,2680.3,3.73082]
[1724422100473,0.128206,2680.6,2680.1,3.73116]
[1724422101154,0.128206,2680.6,2680.1,3.73112]
[1724422101355,0.128206,2680.6,2680.0,3.73132]
[1724422101573,0.8846196,2680.6,2679.6,3.0]
[1724422101793,0.8846196,2680.6,2680.0,3.73134]
[1724422102159,0.128206,2680.6,2680.1,3.7312]
[1724422102403,0.128206,2680.6,2680.3,3.73092]
[1724422102569,0.128206,2680.6,2680.1,3.7312]
[1724422103383,0.128206,2680.6,2680.3,3.73092]
[1724422104075,0.128206,2680.6,2680.1,3.7312]
[1724422104295,0.128206,2680.6,2679.9,3.73143]
[1724422104491,4.6152416,2680.6,2679.9,3.73143]
[1724422104704,0.128206,2680.6,2679.7,0.55]
[1724422104916,0.128206,2680.6,2680.0,3.7312]
[1724422105132,0.128206,2680.6,2680.1,3.73119]
[1724422105295,0.128206,2680.6,2680.0,3.7312]
[1724422105824,3.73066,2680.5,2679.8,3.73152]
[1724422106115,4.8601676,2680.5,2679.8,3.73152]
[1724422106316,1.1295076,2680.5,2679.8,3.73152]
[1724422106625,1.1295076,2680.5,2679.2,7.49]
[1724422106957,0.128206,2680.6,2680.3,3.73082]
[1724422107094,0.128206,2680.6,2680.5,3.73064]
[1724422107421,0.128206,2680.6,2680.5,11.19192]
[1724422107916,0.128206,2680.6,2680.5,11.74192]
[1724422108245,0.128206,2680.6,2680.5,11.01128]
[1724422108375,0.128206,2680.6,2680.5,12.843048]
[1724422108584,0.128206,2680.6,2680.5,9.112408]
[1724422109333,0.128206,2680.6,2680.5,12.843048]
[1724422109481,0.128206,2680.6,2680.5,15.843048]
[1724422109904,0.128206,2680.6,2680.5,11.01128]
[1724422110910,0.128206,2680.6,2680.5,14.74192]
[1724422111592,0.128206,2680.6,2680.5,18.47256]
[1724422111791,0.128206,2680.6,2680.5,14.74192]
[1724422112193,0.128206,2680.6,2680.5,11.01128]
[1724422112411,0.128206,2680.6,2680.5,15.843048]
[1724422112734,0.128206,2680.6,2680.5,12.112408]
[1724422112914,0.128206,2680.6,2680.5,15.843048]
[1724422113222,0.128206,2680.6,2680.5,12.112408]
[1724422113424,0.128206,2680.6,2680.5,11.01128]
[1724422114210,0.128206,2680.6,2680.5,14.74192]
[1724422114410,0.128206,2680.6,2680.5,11.01128]
[1724422115015,0.128206,2680.6,2680.5,14.74192]
[1724422116552,6e-06,2680.6,2680.5,22.2032]
[1724422116712,6e-06,2680.6,2680.5,24.27508]
[1724422117555,6e-06,2680.6,2680.5,28.00572]
[1724422117933,6e-06,2680.6,2680.5,24.27508]
[1724422119023,6e-06,2680.6,2680.5,20.54444]
[1724422119224,6e-06,2680.6,2680.5,24.27508]
[1724422119545,6e-06,2680.6,2680.5,28.00572]
[1724422119741,3.7212,2682.7,2682.1,3.72833]
[1724422119943,4.46607,2682.7,2682.3,3.72814]
[1724422120158,3.7212,2682.7,2682.3,3.72814]
[1724422120362,4.14585023,2683.6,2682.3,3.72814]
[1724422120363,3.6986,2683.0,2682.5,3.72777]
[1724422120520,3.72765,2682.7,2682.0,3.0]
[1724422120718,3.72751,2682.8,2682.1,3.72831]
[1724422121055,0.128206,2683.3,2681.2,7.56353]
[1724422121056,3.72742,2682.9,2681.2,7.56353]
[1724422121220,3.72813,2682.4,2681.7,3.72888]
[1724422121542,3.72802,2682.4,2681.5,3.72915]
[1724422121749,3.72851,2682.1,2681.3,3.72944]
[1724422121916,3.8042,2682.0,2681.2,3.72966]
[1724422122117,3.8042,2682.0,2681.0,3.72981]
[1724422122336,4.10922,2681.9,2681.2,3.72966]
[1724422122619,0.38042,2681.9,2681.4,3.7293]
[1724422123127,0.38042,2681.9,2680.5,2.22032]
[1724422123128,3.8042,2682.0,2681.5,3.72913]
[1724422123336,3.8042,2682.0,2681.0,3.72984]
[1724422123337,3.9066,2682.6,2682.0,3.72844]
[1724422123562,3.9066,2682.6,2681.4,3.72932]
[1724422123722,3.9066,2682.6,2682.5,3.72786]
[1724422123916,3.855046,2683.3,2682.7,3.7275]
[1724422123917,3.9066,2683.2,2682.7,3.7275]
[1724422124148,4.6827436,2683.2,2682.5,3.72786]
[1724422124645,4.6827436,2683.2,2682.6,0.07454915]
[1724422124646,3.9066,2683.2,2682.6,0.07454915]
[1724422124855,3.9066,2683.2,2682.7,3.72745]
[1724422125067,3.9066,2683.2,2682.8,3.80187991]
[1724422125265,3.9066,2683.2,2682.6,3.72763]
[1724422125966,3.9066,2683.2,2682.9,3.72721]
[1724422126269,0.128206,2683.3,2683.1,3.72703]
[1724422126449,0.128206,2683.3,2683.2,3.72689]
[1724422126762,0.128206,2683.3,2682.8,3.72741]
[1724422126978,0.128206,2683.3,2682.9,3.0]
[1724422127271,0.128206,2683.3,2683.2,11.18067]
[1724422127562,1e-08,2683.3,2683.2,14.18067]
[1724422127770,1e-08,2683.3,2683.2,14.73067]
[1724422127919,1e-08,2683.3,2683.2,11.00378]
[1724422128121,1e-08,2683.3,2683.2,12.1714315]
[1724422128417,1e-08,2683.3,2683.0,4.399895]
[1724422128734,1e-08,2683.3,2682.8,3.72743]
[1724422128933,1e-08,2683.3,2683.0,3.72703]
[1724422129145,1e-08,2683.3,2683.1,3.72692]
[1724422129345,1e-08,2683.3,2682.4,3.72791]
[1724422129346,1e-08,2683.3,2683.0,3.72715]
[1724422129545,1e-08,2683.3,2682.8,3.72734]
[1724422129773,1e-08,2683.3,2682.8,3.72737]